[Event "RUS-ch Men Blitz 2019"]
[Site "Sochi"]
[Date "2019.10.17"]
[Round "12.21"]
[White "Chos, Alexey"]
[Black "Vastrukhin, Oleg"]
[Result "0-1"]
[ECO "C03"]
[WhiteElo "2296"]
[BlackElo "2428"]
[Annotator "NA"]
[PlyCount "32"]
[EventDate "2019.10.17"]
[EventType "swiss"]
[EventCountry "RUS"]
[SourceTitle "playchess.com"]
[Source "ChessBase"]
[SourceQuality "1"]
[TimeControl "180+2"]

1. e4 {[%emt 0:00:00]} e6 {[%emt 0:00:00]} 2. d4 {[%emt 0:00:00]} d5 {[%emt 0:00:00]} 3. Nd2 {[%emt 0:00:01]} a6 {[%emt 0:00:00]} 4. e5 {[%emt 0:00:06]} c5 {[%emt 0:00:02]} 5. c3 {[%emt 0:00:01]} Qb6 {[%emt 0:00:04]} 6. Ndf3 {[%emt 0:00:07]} Bd7 {[%emt 0:00:02]} 7. a4 {[%emt 0:00:03]} cxd4 {[%emt 0:00:06]} 8. cxd4 {[%emt 0:00:07]} Nc6 {[%emt 0:00:05]} 9. Ne2 {[%emt 0:00:09]} Nge7 {[%emt 0:00:05]} 10. b3 {[%emt 0:00:18]} Nf5 {[%emt 0:00:06]} 11. Ra2 {[%emt 0:01:21]} Bb4+ {[%emt 0:00:03]} 12. Bd2 {[%emt 0:00:01]} Nfxd4 {[%emt 0:00:05]} 13. Nexd4 {[%emt 0:00:04]} Nxd4 {[%emt 0:00:01]} 14. Bd3 {[%emt 0:00:07]} Bxd2+ {[%emt 0:00:10]} 15. Rxd2 {[%emt 0:00:03]} Nxf3+ {[%emt 0:00:31]} 16. Qxf3 {[%emt 0:00:02]} Qxb3 {[%emt 0:00:06]} 0-1

[Event "RUS-ch Men Blitz 2019"]
[Site "Sochi"]
[Date "2019.10.17"]
[Round "12.22"]
[White "Oganian, Miran"]
[Black "Frolov, Aleksey G."]
[Result "1-0"]
[ECO "D77"]
[WhiteElo "2436"]
[BlackElo "2093"]
[Annotator "NA"]
[PlyCount "73"]
[EventDate "2019.10.17"]
[EventType "swiss"]
[EventCountry "RUS"]
[SourceTitle "playchess.com"]
[Source "ChessBase"]
[SourceQuality "1"]
[TimeControl "180+2"]

1. d4 {[%emt 0:00:00]} Nf6 {[%emt 0:00:00]} 2. c4 {[%emt 0:00:00]} g6 {[%emt 0:00:00]} 3. Nf3 {[%emt 0:00:01]} Bg7 {[%emt 0:00:01]} 4. g3 {[%emt 0:00:01]} O-O {[%emt 0:00:02]} 5. Bg2 {[%emt 0:00:01]} d5 {[%emt 0:00:01]} 6. O-O {[%emt 0:00:02]} Nc6 {[%emt 0:00:01]} 7. cxd5 {[%emt 0:00:06]} Nxd5 {[%emt 0:00:01]} 8. e3 {[%emt 0:00:09]} Re8 {[%emt 0:00:10]} 9. Nc3 {[%emt 0:00:04]} Nb6 {[%emt 0:00:01]} 10. d5 {[%emt 0:00:14]} Na5 {[%emt 0:00:02]} 11. e4 {[%emt 0:00:06]} c6 {[%emt 0:00:02]} 12. Bg5 {[%emt 0:00:23]} Bxc3 {[%emt 0:00:06]} 13. bxc3 {[%emt 0:00:02]} cxd5 {[%emt 0:00:01]} 14. e5 {[%emt 0:00:51]} Qc7 {[%emt 0:00:07]} 15. Rc1 {[%emt 0:00:06]} Nac4 {[%emt 0:00:02]} 16. Qd4 {[%emt 0:00:03]} Bf5 {[%emt 0:00:34]} 17. Rfe1 {[%emt 0:00:04]} Rad8 {[%emt 0:00:15]} 18. Bh6 {[%emt 0:00:07]} e6 {[%emt 0:00:17]} 19. Qh4 {[%emt 0:00:12]} Qe7 {[%emt 0:00:11]} 20. Bg5 {[%emt 0:00:01]} Qf8 {[%emt 0:00:01]} 21. Bxd8 {[%emt 0:00:14]} Rxd8 {[%emt 0:00:01]} 22. Nd4 {[%emt 0:00:07]} Nb2 {[%emt 0:00:19]} 23. Nxf5 {[%emt 0:00:04]} exf5 {[%emt 0:00:03]} 24. Bf1 {[%emt 0:00:05]} Re8 {[%emt 0:00:05]} 25. Qd4 {[%emt 0:00:08]} Qa3 {[%emt 0:00:19]} 26. h4 {[%emt 0:00:07]} N2c4 {[%emt 0:00:12]} 27. h5 {[%emt 0:00:04]} Qxa2 {[%emt 0:00:14]} 28. e6 {[%emt 0:00:09]} Rxe6 {[%emt 0:00:10]} 29. h6 {[%emt 0:00:09]} Kf8 {[%emt 0:00:06]} 30. Rxe6 {[%emt 0:00:01]} fxe6 {[%emt 0:00:01]} 31. Qg7+ {[%emt 0:00:05]} Ke8 {[%emt 0:00:00]} 32. Qg8+ {[%emt 0:00:05]} Kd7 {[%emt 0:00:01]} 33. Qxh7+ {[%emt 0:00:00]} Kd6 {[%emt 0:00:02]} 34. Qxb7 {[%emt 0:00:07]} Qd2 {[%emt 0:00:03]} 35. Ra1 {[%emt 0:00:07]} Qxh6 {[%emt 0:00:01]} 36. Rxa7 {[%emt 0:00:01]} Qc1 {[%emt 0:00:25]} 37. Qc7# {[%emt 0:00:01]} 1-0

[Event "RUS-ch Men Blitz 2019"]
[Site "Sochi"]
[Date "2019.10.17"]
[Round "12.23"]
[White "Eraschenkov, Denis"]
[Black "Alexeev, Alexey"]
[Result "1/2-1/2"]
[ECO "B30"]
[WhiteElo "2382"]
[BlackElo "2252"]
[Annotator "NA"]
[PlyCount "91"]
[EventDate "2019.10.17"]
[EventType "swiss"]
[EventCountry "RUS"]
[SourceTitle "playchess.com"]
[Source "ChessBase"]
[SourceQuality "1"]
[TimeControl "180+2"]

1. e4 {[%emt 0:00:00]} c5 {[%emt 0:00:00]} 2. Nf3 {[%emt 0:00:01]} Nc6 {[%emt 0:00:00]} 3. Nc3 {[%emt 0:00:01]} Nf6 {[%emt 0:00:00]} 4. Bb5 {[%emt 0:00:02]} d6 {[%emt 0:00:20]} 5. O-O {[%emt 0:00:24]} e5 {[%emt 0:00:05]} 6. d3 {[%emt 0:00:10]} Be7 {[%emt 0:00:03]} 7. Nd5 {[%emt 0:00:03]} O-O {[%emt 0:00:14]} 8. Nxf6+ {[%emt 0:00:06]} Bxf6 {[%emt 0:00:02]} 9. h3 {[%emt 0:00:12]} Qc7 {[%emt 0:00:02]} 10. c3 {[%emt 0:00:04]} a6 {[%emt 0:00:12]} 11. Bc4 {[%emt 0:00:02]} b5 {[%emt 0:00:10]} 12. Bd5 {[%emt 0:00:06]} Rb8 {[%emt 0:00:15]} 13. Nh2 {[%emt 0:00:04]} Ne7 {[%emt 0:00:05]} 14. Bb3 {[%emt 0:00:01]} c4 {[%emt 0:00:05]} 15. Bc2 {[%emt 0:00:05]} cxd3 {[%emt 0:00:09]} 16. Qxd3 {[%emt 0:00:12]} Ng6 {[%emt 0:00:07]} 17. Bb3 {[%emt 0:00:13]} Be7 {[%emt 0:00:14]} 18. Ng4 {[%emt 0:00:10]} Kh8 {[%emt 0:00:07]} 19. Ne3 {[%emt 0:00:05]} Nf4 {[%emt 0:00:01]} 20. Qd1 {[%emt 0:00:02]} Be6 {[%emt 0:00:07]} 21. Kh2 {[%emt 0:00:06]} Qd7 {[%emt 0:00:19]} 22. Bxe6 {[%emt 0:00:08]} fxe6 {[%emt 0:00:07]} 23. g3 {[%emt 0:00:17]} Ng6 {[%emt 0:00:05]} 24. h4 {[%emt 0:00:02]} Bd8 {[%emt 0:00:11]} 25. h5 {[%emt 0:00:05]} Ne7 {[%emt 0:00:01]} 26. Qg4 {[%emt 0:00:06]} Bb6 {[%emt 0:00:06]} 27. Kg2 {[%emt 0:00:05]} Ng8 {[%emt 0:00:03]} 28. Nd5 {[%emt 0:00:07]} Nf6 {[%emt 0:00:12]} 29. Nxb6 {[%emt 0:00:05]} Rxb6 {[%emt 0:00:02]} 30. Qh4 {[%emt 0:00:01]} Rc6 {[%emt 0:00:03]} 31. h6 {[%emt 0:00:09]} g6 {[%emt 0:00:03]} 32. Bg5 {[%emt 0:00:04]} Nh5 {[%emt 0:00:05]} 33. Rad1 {[%emt 0:00:03]} Qf7 {[%emt 0:00:05]} 34. Qg4 {[%emt 0:00:03]} d5 {[%emt 0:00:05]} 35. Rd2 {[%emt 0:00:06]} Rc4 {[%emt 0:00:07]} 36. Re1 {[%emt 0:00:05]} d4 {[%emt 0:00:04]} 37. cxd4 {[%emt 0:00:05]} exd4 {[%emt 0:00:05]} 38. b3 {[%emt 0:00:05]} Rc3 {[%emt 0:00:01]} 39. e5 {[%emt 0:00:02]} d3 {[%emt 0:00:09]} 40. Re3 {[%emt 0:00:02]} Rc2 {[%emt 0:00:02]} 41. Rexd3 {[%emt 0:00:08]} Qxf2+ {[%emt 0:00:03]} 42. Rxf2 {[%emt 0:00:01]} Rfxf2+ {[%emt 0:00:01]} 43. Kg1 {[%emt 0:00:01]} Rg2+ {[%emt 0:00:04]} 44. Kf1 {[%emt 0:00:01]} Rcf2+ {[%emt 0:00:02]} 45. Ke1 {[%emt 0:00:01]} Nxg3 {[%emt 0:00:07]} 46. Rd8+ {[%emt 0:00:02]} 1/2-1/2

[Event "RUS-ch Men Blitz 2019"]
[Site "Sochi"]
[Date "2019.10.17"]
[Round "12.24"]
[White "Utnasunov, Alexander"]
[Black "Keosidi, Konstantin"]
[Result "1-0"]
[ECO "D35"]
[WhiteElo "2442"]
[BlackElo "2400"]
[Annotator "NA"]
[PlyCount "63"]
[EventDate "2019.10.17"]
[EventType "swiss"]
[EventCountry "RUS"]
[SourceTitle "playchess.com"]
[Source "ChessBase"]
[SourceQuality "1"]
[TimeControl "180+2"]

1. d4 {[%emt 0:00:00]} d5 {[%emt 0:00:00]} 2. c4 {[%emt 0:00:01]} e6 {[%emt 0:00:00]} 3. Nc3 {[%emt 0:00:01]} Nf6 {[%emt 0:00:03]} 4. cxd5 {[%emt 0:00:01]} exd5 {[%emt 0:00:01]} 5. Bg5 {[%emt 0:00:01]} Be7 {[%emt 0:00:01]} 6. e3 {[%emt 0:00:01]} c6 {[%emt 0:00:01]} 7. Bd3 {[%emt 0:00:02]} Nbd7 {[%emt 0:00:00]} 8. Qc2 {[%emt 0:00:04]} Nh5 {[%emt 0:00:01]} 9. Bxe7 {[%emt 0:00:06]} Qxe7 {[%emt 0:00:01]} 10. O-O-O {[%emt 0:00:09]} g6 {[%emt 0:00:06]} 11. Nf3 {[%emt 0:00:03]} Nb6 {[%emt 0:00:01]} 12. Kb1 {[%emt 0:00:10]} Ng7 {[%emt 0:00:02]} 13. Rhe1 {[%emt 0:00:14]} Be6 {[%emt 0:00:26]} 14. Rc1 {[%emt 0:00:16]} O-O-O {[%emt 0:00:04]} 15. Na4 {[%emt 0:00:09]} Nxa4 {[%emt 0:00:12]} 16. Qxa4 {[%emt 0:00:02]} Kb8 {[%emt 0:00:00]} 17. Rc3 {[%emt 0:00:19]} Bf5 {[%emt 0:00:03]} 18. Ne5 {[%emt 0:00:32]} Rc8 {[%emt 0:00:01]} 19. Rec1 {[%emt 0:00:09]} f6 {[%emt 0:00:08]} 20. Bxf5 {[%emt 0:00:01]} Nxf5 {[%emt 0:00:04]} 21. Nd3 {[%emt 0:00:04]} Nd6 {[%emt 0:00:16]} 22. Ra3 {[%emt 0:00:07]} Nb5 {[%emt 0:00:53]} 23. Rb3 {[%emt 0:00:01]} Rhe8 {[%emt 0:00:21]} 24. Nc5 {[%emt 0:00:07]} b6 {[%emt 0:00:10]} 25. Na6+ {[%emt 0:00:10]} Kb7 {[%emt 0:00:00]} 26. Nb4 {[%emt 0:00:01]} Qd6 {[%emt 0:00:32]} 27. Qa6+ {[%emt 0:00:26]} Kb8 {[%emt 0:00:01]} 28. a4 {[%emt 0:00:07]} c5 {[%emt 0:00:16]} 29. dxc5 {[%emt 0:00:07]} bxc5 {[%emt 0:00:09]} 30. Qxb5+ {[%emt 0:00:06]} Ka8 {[%emt 0:00:04]} 31. Na6 {[%emt 0:00:04]} c4 {[%emt 0:00:05]} 32. Qb7# {[%emt 0:00:02]} 1-0

[Event "RUS-ch Men Blitz 2019"]
[Site "Sochi"]
[Date "2019.10.17"]
[Round "12.27"]
[White "Pogromsky, Mikhail"]
[Black "Khegay, Dmitriy"]
[Result "0-1"]
[ECO "A06"]
[WhiteElo "2411"]
[BlackElo "2509"]
[Annotator "ChessBase"]
[PlyCount "40"]
[EventDate "2019.10.17"]
[EventType "swiss"]
[EventCountry "RUS"]
[SourceTitle "playchess.com"]
[Source "ChessBase"]
[SourceQuality "1"]
[TimeControl "180+2"]

1. Nf3 {[%emt 0:00:00]} d5 {[%emt 0:00:00]} 2. d4 {[%emt 0:00:01]} c6 {[%emt 0:00:00]} 3. c4 {[%emt 0:00:02]} dxc4 {[%emt 0:00:00]} 4. e3 {[%emt 0:00:01]} Be6 {[%emt 0:00:01]} 5. Nbd2 {[%emt 0:00:29]} Qa5 {[%emt 0:00:10]} 6. Be2 {[%emt 0:00:04]} Nf6 {[%emt 0:00:12]} 7. O-O {[%emt 0:00:02]} b5 {[%emt 0:00:01]} 8. Ne5 {[%emt 0:00:11]} Nfd7 {[%emt 0:00:14]} 9. Ndf3 {[%emt 0:00:07]} g6 {[%emt 0:00:29]} 10. Ng5 {[%emt 0:00:03]} Nxe5 {[%emt 0:00:11]} 11. Nxe6 {[%emt 0:00:06]} fxe6 {[%emt 0:00:01]} 12. dxe5 {[%emt 0:00:01]} Bg7 {[%emt 0:00:01]} 13. Bg4 {[%emt 0:00:03]} O-O {[%emt 0:00:08]} 14. Bxe6+ {[%emt 0:00:01]} Kh8 {[%emt 0:00:00]} 15. f4 {[%emt 0:00:14]} Na6 {[%emt 0:00:02]} 16. Bd2 {[%emt 0:00:13]} Qb6 {[%emt 0:00:01]} 17. Qg4 {[%emt 0:00:34]} Rad8 {[%emt 0:00:06]} 18. Rad1 {[%emt 0:00:01]} Nc5 {[%emt 0:00:01]} 19. Qh3 {[%emt 0:00:22]} Nd3 {[%emt 0:00:07]} 20. Bc3 {[%emt 0:00:08]} Nxf4 {[%emt 0:00:08]} 0-1

[Event "RUS-ch Men Blitz 2019"]
[Site "Sochi"]
[Date "2019.10.17"]
[Round "12.28"]
[White "Zakhartsov, Vladimir"]
[Black "Volovich, Vasily"]
[Result "0-1"]
[ECO "E20"]
[WhiteElo "2514"]
[BlackElo "2120"]
[Annotator "ChessBase"]
[PlyCount "81"]
[EventDate "2019.10.17"]
[EventType "swiss"]
[EventCountry "RUS"]
[SourceTitle "playchess.com"]
[Source "ChessBase"]
[SourceQuality "1"]
[TimeControl "180+2"]

1. d4 {[%emt 0:00:00]} e6 {[%emt 0:00:00]} 2. c4 {[%emt 0:00:00]} Nf6 {[%emt 0:00:02]} 3. Nc3 {[%emt 0:00:00]} Bb4 {[%emt 0:00:01]} 4. Bd2 {[%emt 0:00:01]} c5 {[%emt 0:00:04]} 5. d5 {[%emt 0:00:02]} exd5 {[%emt 0:00:01]} 6. Nxd5 {[%emt 0:00:04]} Nxd5 {[%emt 0:00:02]} 7. cxd5 {[%emt 0:00:01]} Bxd2+ {[%emt 0:00:04]} 8. Qxd2 {[%emt 0:00:01]} d6 {[%emt 0:00:05]} 9. Nf3 {[%emt 0:00:03]} O-O {[%emt 0:00:02]} 10. e3 {[%emt 0:00:04]} Bg4 {[%emt 0:00:09]} 11. Bd3 {[%emt 0:00:05]} Nd7 {[%emt 0:00:07]} 12. h3 {[%emt 0:00:03]} Bxf3 {[%emt 0:00:09]} 13. gxf3 {[%emt 0:00:01]} Qf6 {[%emt 0:00:04]} 14. f4 {[%emt 0:00:04]} Rfe8 {[%emt 0:00:08]} 15. Be2 {[%emt 0:00:07]} Nb6 {[%emt 0:00:23]} 16. O-O-O {[%emt 0:00:08]} Rac8 {[%emt 0:00:08]} 17. Rhg1 {[%emt 0:00:06]} c4 {[%emt 0:00:06]} 18. Qd4 {[%emt 0:00:04]} Qxd4 {[%emt 0:00:06]} 19. Rxd4 {[%emt 0:00:01]} Rc5 {[%emt 0:00:01]} 20. Rgd1 {[%emt 0:00:07]} Ra5 {[%emt 0:00:17]} 21. Kb1 {[%emt 0:00:09]} Rc8 {[%emt 0:00:02]} 22. Re4 {[%emt 0:00:17]} Kf8 {[%emt 0:00:04]} 23. Rc1 {[%emt 0:00:09]} Rxd5 {[%emt 0:00:06]} 24. Rc2 {[%emt 0:00:11]} f5 {[%emt 0:00:06]} 25. Rd4 {[%emt 0:00:15]} Rxd4 {[%emt 0:00:01]} 26. exd4 {[%emt 0:00:01]} Nd5 {[%emt 0:00:23]} 27. Bf3 {[%emt 0:00:31]} Nxf4 {[%emt 0:00:06]} 28. Bxb7 {[%emt 0:00:01]} Rc7 {[%emt 0:00:08]} 29. Ba6 {[%emt 0:00:01]} Nxh3 {[%emt 0:00:04]} 30. b3 {[%emt 0:00:28]} c3 {[%emt 0:00:09]} 31. b4 {[%emt 0:00:00]} Nf4 {[%emt 0:00:03]} 32. a3 {[%emt 0:00:13]} h5 {[%emt 0:00:03]} 33. Rc1 {[%emt 0:00:14]} g5 {[%emt 0:00:07]} 34. Kc2 {[%emt 0:00:04]} Kf7 {[%emt 0:00:08]} 35. a4 {[%emt 0:00:02]} h4 {[%emt 0:00:07]} 36. a5 {[%emt 0:00:05]} Nd5 {[%emt 0:00:02]} 37. Kb3 {[%emt 0:00:03]} Kf6 {[%emt 0:00:04]} 38. Bc4 {[%emt 0:00:08]} Nf4 {[%emt 0:00:02]} 39. b5 {[%emt 0:00:02]} g4 {[%emt 0:00:04]} 40. Kb4 {[%emt 0:00:11]} d5 {[%emt 0:00:06]} 41. Bb3 {[%emt 0:00:01]} 0-1

[Event "RUS-ch Men Blitz 2019"]
[Site "Sochi"]
[Date "2019.10.17"]
[Round "12.30"]
[White "Airapetian, Gor"]
[Black "Zakaryan, David"]
[Result "0-1"]
[ECO "D31"]
[WhiteElo "2447"]
[BlackElo "2338"]
[Annotator "NA"]
[PlyCount "71"]
[EventDate "2019.10.17"]
[EventType "swiss"]
[EventCountry "RUS"]
[SourceTitle "playchess.com"]
[Source "ChessBase"]
[SourceQuality "1"]
[TimeControl "180+2"]

1. d4 {[%emt 0:00:00]} d5 {[%emt 0:00:00]} 2. c4 {[%emt 0:00:01]} e6 {[%emt 0:00:00]} 3. Nc3 {[%emt 0:00:01]} a6 {[%emt 0:00:01]} 4. cxd5 {[%emt 0:00:05]} exd5 {[%emt 0:00:01]} 5. Nf3 {[%emt 0:00:01]} Nf6 {[%emt 0:00:01]} 6. Bg5 {[%emt 0:00:09]} Be6 {[%emt 0:00:02]} 7. e3 {[%emt 0:00:02]} Nbd7 {[%emt 0:00:02]} 8. Be2 {[%emt 0:00:10]} h6 {[%emt 0:00:02]} 9. Bh4 {[%emt 0:00:01]} g5 {[%emt 0:00:01]} 10. Bg3 {[%emt 0:00:02]} Nh5 {[%emt 0:00:01]} 11. Qb3 {[%emt 0:00:22]} c5 {[%emt 0:00:09]} 12. Qxb7 {[%emt 0:00:36]} Nxg3 {[%emt 0:00:02]} 13. hxg3 {[%emt 0:00:00]} Rb8 {[%emt 0:00:34]} 14. Qxa6 {[%emt 0:00:13]} Rxb2 {[%emt 0:00:04]} 15. O-O {[%emt 0:00:12]} c4 {[%emt 0:00:26]} 16. Rab1 {[%emt 0:00:35]} Rc2 {[%emt 0:00:16]} 17. Rfc1 {[%emt 0:00:02]} Rxc1+ {[%emt 0:00:03]} 18. Rxc1 {[%emt 0:00:01]} Bb4 {[%emt 0:00:06]} 19. Qb5 {[%emt 0:00:28]} Qa5 {[%emt 0:00:10]} 20. Qxa5 {[%emt 0:00:12]} Bxa5 {[%emt 0:00:01]} 21. e4 {[%emt 0:00:13]} Bxc3 {[%emt 0:00:09]} 22. Rxc3 {[%emt 0:00:01]} dxe4 {[%emt 0:00:22]} 23. Nd2 {[%emt 0:00:00]} f5 {[%emt 0:00:04]} 24. Bxc4 {[%emt 0:00:08]} Ke7 {[%emt 0:00:02]} 25. Bb3 {[%emt 0:00:10]} Rb8 {[%emt 0:00:04]} 26. g4 {[%emt 0:00:02]} Nf6 {[%emt 0:00:31]} 27. gxf5 {[%emt 0:00:03]} Bxf5 28. Nf1 Bd7 {[%emt 0:00:11]} 29. Ne3 {[%emt 0:00:01]} Rb4 {[%emt 0:00:02]} 30. d5 {[%emt 0:00:02]} Rd4 {[%emt 0:00:03]} 31. Kf1 {[%emt 0:00:04]} h5 {[%emt 0:00:06]} 32. Rc4 {[%emt 0:00:03]} Rd2 {[%emt 0:00:03]} 33. Rc2 {[%emt 0:00:01]} Rd4 {[%emt 0:00:03]} 34. g3 {[%emt 0:00:03]} h4 {[%emt 0:00:00]} 35. gxh4 {[%emt 0:00:01]} gxh4 {[%emt 0:00:01]} 36. Kg2 {[%emt 0:00:01]} 0-1

[Event "RUS-ch Men Blitz 2019"]
[Site "Sochi"]
[Date "2019.10.17"]
[Round "12.31"]
[White "Kovalchuk, Alexey"]
[Black "Musalov, Ruslan"]
[Result "1/2-1/2"]
[ECO "C50"]
[WhiteElo "2388"]
[BlackElo "2348"]
[Annotator "NA"]
[PlyCount "140"]
[EventDate "2019.10.17"]
[EventType "swiss"]
[EventCountry "RUS"]
[SourceTitle "playchess.com"]
[Source "ChessBase"]
[SourceQuality "1"]
[TimeControl "180+2"]

1. e4 e5 2. Nf3 Nc6 3. Bc4 Bc5 4. d3 Nf6 5. c3 O-O 6. O-O d5 7. exd5 Nxd5 8. Re1 Nf6 9. Bg5 h6 10. Bh4 Re8 11. Nbd2 Bg4 12. h3 Bh5 13. Bg3 Bd6 14. b4 a6 15. a4 Qd7 16. Qc2 Rad8 17. b5 Na5 18. Nxe5 Bxe5 19. Bxe5 Nxc4 20. Nxc4 Qxd3 21. Qxd3 Rxd3 22. Bd4 Rxe1+ 23. Rxe1 Nd5 24. Re8+ Kh7 25. Ne5 Rd1+ 26. Kh2 axb5 27. axb5 Rc1 28. Rc8 Bg6 29. c4 Nf6 30. Rxc7 Ne4 31. Rxb7 Nd2 32. g4 Rc2 33. Kg3 Ne4+ 34. Kf3 Nd2+ 35. Ke3 Nf1+ 36. Kf4 Nd2 37. c5 Nb3 38. Be3 Nxc5 39. Bxc5 Rxc5 40. Nxg6 Kxg6 41. b6 Rb5 42. Rb8 Kf6 43. f3 Rb4+ 44. Ke3 g6 45. h4 Rb3+ 46. Kd4 Rxf3 47. Rc8 Rb3 48. Rc6+ Ke7 49. Kc5 h5 50. gxh5 gxh5 51. Rh6 f5 52. Rxh5 Ke6 53. Kc6 Rc3+ 54. Kb5 Rb3+ 55. Kc5 f4 56. Rh8 Kf5 57. Kc6 Rc3+ 58. Kd6 Rd3+ 59. Kc7 Rc3+ 60. Kb8 Kg4 61. h5 Kg5 62. h6 Kg6 63. b7 f3 64. Rf8 Kxh6 65. Rxf3 Rxf3 66. Ka8 Ra3+ 67. Kb8 Kg6 68. Kc7 Rc3+ 69. Kd7 Rd3+ 70. Kc7 Ra3 1/2-1/2

[Event "RUS-ch Men Blitz 2019"]
[Site "Sochi"]
[Date "2019.10.17"]
[Round "13.2"]
[White "Rublevsky, Sergei"]
[Black "Ponkratov, Pavel"]
[Result "0-1"]
[ECO "B01"]
[WhiteElo "2651"]
[BlackElo "2621"]
[Annotator "RC"]
[PlyCount "116"]
[EventDate "2019.10.17"]
[EventType "swiss"]
[EventCountry "RUS"]
[SourceTitle "playchess.com"]
[Source "ChessBase"]
[SourceQuality "1"]
[TimeControl "180+2"]

1. e4 {[%emt 0:00:00]} d5 {[%emt 0:00:00]} 2. exd5 {[%emt 0:00:01]} Qxd5 {[%emt 0:00:00]} 3. Nc3 {[%emt 0:00:01]} Qd6 {[%emt 0:00:01]} 4. d4 {[%emt 0:00:02]} Nf6 {[%emt 0:00:01]} 5. Nf3 {[%emt 0:00:02]} g6 {[%emt 0:00:02]} 6. Bg5 {[%emt 0:00:28]} Bg7 {[%emt 0:00:05]} 7. Qd2 {[%emt 0:00:01]} O-O {[%emt 0:00:18]} 8. O-O-O {[%emt 0:00:09]} Bg4 {[%emt 0:00:02]} 9. Be2 {[%emt 0:00:02]} Nc6 {[%emt 0:00:07]} 10. Bh6 {[%emt 0:00:10]} Rfd8 {[%emt 0:00:08]} 11. Bxg7 {[%emt 0:00:03]} Kxg7 {[%emt 0:00:01]} 12. Qe3 {[%emt 0:00:16]} Nb4 {[%emt 0:00:38]} 13. a3 {[%emt 0:00:30]} Nbd5 {[%emt 0:00:01]} 14. Nxd5 {[%emt 0:00:02]} Nxd5 {[%emt 0:00:01]} 15. Qg5 {[%emt 0:00:09]} Qf4+ {[%emt 0:00:03]} 16. Qxf4 {[%emt 0:00:02]} Nxf4 {[%emt 0:00:00]} 17. Bf1 {[%emt 0:00:09]} Bxf3 {[%emt 0:00:02]} 18. gxf3 {[%emt 0:00:01]} e6 {[%emt 0:00:02]} 19. c3 {[%emt 0:00:07]} Kf6 {[%emt 0:00:01]} 20. Bd3 {[%emt 0:00:04]} c5 {[%emt 0:00:03]} 21. Be4 {[%emt 0:00:03]} cxd4 {[%emt 0:00:01]} 22. cxd4 {[%emt 0:00:09]} Rac8+ {[%emt 0:00:05]} 23. Kb1 {[%emt 0:00:05]} b6 {[%emt 0:00:01]} 24. Rd2 {[%emt 0:00:02]} Rd6 {[%emt 0:00:09]} 25. Rhd1 {[%emt 0:00:05]} Rcd8 {[%emt 0:00:02]} 26. Kc2 {[%emt 0:00:02]} Ke7 {[%emt 0:00:06]} 27. Kc1 {[%emt 0:00:09]} f5 {[%emt 0:00:03]} 28. Bc2 {[%emt 0:00:00]} Rxd4 {[%emt 0:00:04]} 29. Rxd4 {[%emt 0:00:03]} Rxd4 {[%emt 0:00:01]} 30. Rxd4 {[%emt 0:00:01]} Ne2+ {[%emt 0:00:01]} 31. Kd2 {[%emt 0:00:01]} Nxd4 {[%emt 0:00:01]} 32. Bd1 {[%emt 0:00:01]} e5 {[%emt 0:00:02]} 33. Kd3 {[%emt 0:00:04]} Kd6 {[%emt 0:00:02]} 34. f4 {[%emt 0:00:01]} Ne6 {[%emt 0:00:02]} 35. fxe5+ {[%emt 0:00:01]} Kxe5 {[%emt 0:00:01]} 36. Kc4 {[%emt 0:00:05]} Nc7 {[%emt 0:00:06]} 37. Be2 {[%emt 0:00:06]} g5 {[%emt 0:00:06]} 38. Kd3 {[%emt 0:00:02]} g4 {[%emt 0:00:02]} 39. f3 {[%emt 0:00:05]} h5 {[%emt 0:00:01]} 40. Ke3 {[%emt 0:00:05]} Nd5+ {[%emt 0:00:01]} 41. Kf2 {[%emt 0:00:01]} Kf4 {[%emt 0:00:03]} 42. fxg4 {[%emt 0:00:03]} fxg4 {[%emt 0:00:04]} 43. Bc4 {[%emt 0:00:05]} Ne3 {[%emt 0:00:02]} 44. Bb3 {[%emt 0:00:00]} h4 {[%emt 0:00:02]} 45. Ke2 {[%emt 0:00:05]} Nf5 {[%emt 0:00:04]} 46. Bd5 {[%emt 0:00:03]} Nd4+ {[%emt 0:00:08]} 47. Kf2 {[%emt 0:00:01]} Nf3 {[%emt 0:00:14]} 48. Kg2 {[%emt 0:00:01]} Ne1+ {[%emt 0:00:01]} 49. Kf1 {[%emt 0:00:02]} Nd3 {[%emt 0:00:02]} 50. b4 {[%emt 0:00:01]} g3 {[%emt 0:00:06]} 51. hxg3+ {[%emt 0:00:07]} Kxg3 {[%emt 0:00:01]} 52. Bb7 {[%emt 0:00:06]} h3 {[%emt 0:00:02]} 53. Be4 {[%emt 0:00:08]} Ne5 {[%emt 0:00:06]} 54. Ke2 {[%emt 0:00:02]} h2 {[%emt 0:00:15]} 55. a4 {[%emt 0:00:02]} a5 {[%emt 0:00:05]} 56. bxa5 {[%emt 0:00:02]} bxa5 {[%emt 0:00:01]} 57. Ke3 {[%emt 0:00:04]} Nc4+ {[%emt 0:00:03]} 58. Kd4 {[%emt 0:00:01]} Nb2 {[%emt 0:00:09]} 0-1